Workbook

Sheet القائمة
A1: أسماء المقاولين | B1: الكلاستر | C1: الصوبة | D1: العملية | F1: =+F2-تقرير!I4 -> 0 | G1: المقاول | H1: المبلغ
A2: خالد مهدي | B2: 2 | C2: A | D2: 1 | E2: 1حفر وردم 10%0 | F2: =SUM(H2:H24) -> 66900 | G2: =IF(+A2="","",+A2) -> خالد مهدي | H2: =IF(+A2="","",SUMIF(الشغل!$L$5:$L$2000,$G2,الشغل!$M$5:$M$2000)) -> 66900
A3: إيهاب | B3: 6 | C3: B | D3: 2 | E3: 2بناء ومحارة وعزل40%0 | G3: =IF(+A3="","",+A3) -> إيهاب | H3: =IF(+A3="","",SUMIF(الشغل!$L$5:$L$2000,$G3,الشغل!$M$5:$M$2000)) -> 0
B4: 13 | C4: C | D4: 3 | E4: 3عـــــــــــــــــزل35%0 | H4: =IF(+A4="","",SUMIF(الشغل!$L$5:$L$2000,$G4,الشغل!$M$5:$M$2000)) ->  | I4: =(0.2+0.44+0.68+0.64+0.44+0.52+0.48+0.2+0.32+0.52+0.44+0.28) -> 5.16 | J4: 1400 | K4: =+I4*J4 -> 7224
B5: 22 | C5: D | D5: 4 | E5: 4مواسير صرف ورى5%0 | H5: =IF(+A5="","",SUMIF(الشغل!$L$5:$L$2000,$G5,الشغل!$M$5:$M$2000)) -> 
B6: 32 | C6: E | D6: 5 | E6: 5سورالخارجى10%0 | H6: =IF(+A6="","",SUMIF(الشغل!$L$5:$L$2000,$G6,الشغل!$M$5:$M$2000)) -> 
B7: 33 | C7: F | H7: =IF(+A7="","",SUMIF(الشغل!$L$5:$L$2000,$G7,الشغل!$M$5:$M$2000)) ->  | I7: =(2+2+8+1+8+4+4)*160 -> 4640
B8: 23 | H8: =IF(+A8="","",SUMIF(الشغل!$L$5:$L$2000,$G8,الشغل!$M$5:$M$2000)) -> 
B9: 34 | H9: =IF(+A9="","",SUMIF(الشغل!$L$5:$L$2000,$G9,الشغل!$M$5:$M$2000)) -> 
B10: 24 | H10: =IF(+A10="","",SUMIF(الشغل!$L$5:$L$2000,$G10,الشغل!$M$5:$M$2000)) -> 
B11: 8 | H11: =IF(+A11="","",SUMIF(الشغل!$L$5:$L$2000,$G11,الشغل!$M$5:$M$2000)) ->  | I11: =(0.8+0.56+0.08+0.24+0.28+0.44+0.32+0.32+0.16+0.8+0.48+0.4+0.24+0.36+0.32+0.52+1+0.16+0.2+0.28+0.48+0.4+0.24)*1400+12712+21600 -> 47024 | J11: =1600*75/100 -> 1200 | K11: =+J11*18 -> 21600 | L11: 9.08 | M11: =+L11*1400 -> 12712
B12: 88 | H12: =IF(+A12="","",SUMIF(الشغل!$L$5:$L$2000,$G12,الشغل!$M$5:$M$2000)) -> 
B13: 47 | H13: =IF(+A13="","",SUMIF(الشغل!$L$5:$L$2000,$G13,الشغل!$M$5:$M$2000)) -> 
B14: 48 | H14: =IF(+A14="","",SUMIF(الشغل!$L$5:$L$2000,$G14,الشغل!$M$5:$M$2000)) -> 
B15: 63 | H15: =IF(+A15="","",SUMIF(الشغل!$L$5:$L$2000,$G15,الشغل!$M$5:$M$2000)) -> 
B16: 83 | H16: =IF(+A16="","",SUMIF(الشغل!$L$5:$L$2000,$G16,الشغل!$M$5:$M$2000)) -> 
B17: 67 | H17: =IF(+A17="","",SUMIF(الشغل!$L$5:$L$2000,$G17,الشغل!$M$5:$M$2000)) -> 
B18: 87 | H18: =IF(+A18="","",SUMIF(الشغل!$L$5:$L$2000,$G18,الشغل!$M$5:$M$2000)) -> 
B19: 66 | H19: =IF(+A19="","",SUMIF(الشغل!$L$5:$L$2000,$G19,الشغل!$M$5:$M$2000)) -> 
B20: 86 | G20: =IF(+A20="","",+A20) ->  | H20: =IF(+A20="","",SUMIF(الشغل!$L$5:$L$2000,$G20,الشغل!$M$5:$M$2000)) -> 
B21: 88 | H21: =IF(+A21="","",SUMIF(الشغل!$L$5:$L$2000,$G21,الشغل!$M$5:$M$2000)) -> 
B22: 58 | H22: =IF(+A22="","",SUMIF(الشغل!$L$5:$L$2000,$G22,الشغل!$M$5:$M$2000)) -> 
B23: 56 | H23: =IF(+A23="","",SUMIF(الشغل!$L$5:$L$2000,$G23,الشغل!$M$5:$M$2000)) -> 
B24: 57 | H24: =IF(+A24="","",SUMIF(الشغل!$L$5:$L$2000,$G24,الشغل!$M$5:$M$2000)) -> 

Sheet النسب
A2: النسبة المؤية | B2: النسبة العامة | C2: المبلغ | D2: اسم البند | E2: النسبة | F2: العمل | G2: القيمة المستحقة | H2: النسبة المؤية | I2: النسبة العامة | J2: المبلغ | K2: اسم البند | L2: النسبة | M2: العمل | N2: القيمة المستحقة | O2: النسبة المؤية | P2: النسبة العامة | Q2: المبلغ | R2: اسم البند | S2: النسبة | T2: العمل | U2: القيمة المستحقة | V2: النسبة المؤية | W2: النسبة العامة | X2: المبلغ | Y2: اسم البند | Z2: النسبة | AA2: العمل | AB2: القيمة المستحقة | AC2: النسبة المؤية | AD2: النسبة العامة | AE2: المبلغ | AF2: اسم البند | AG2: النسبة | AH2: العمل | AI2: القيمة المستحقة
A3: 0 | B3: 0 | C3: 0 | D3: 0 | E3: 0 | F3: 0 | G3: 0 | H3: 0 | I3: 0 | J3: 0 | K3: 0 | L3: 0 | M3: 0 | N3: 0 | O3: 0 | P3: 0 | Q3: 0 | R3: 0 | S3: 0 | T3: 0 | U3: 0 | V3: 0 | W3: 0 | X3: 0 | Y3: 0 | Z3: 0 | AA3: 0 | AB3: 0 | AC3: 0 | AD3: 0 | AE3: 0 | AF3: 0 | AG3: 0 | AH3: 0 | AI3: 0
A4: 0.05 | B4: 5 | C4: 4000 | D4: حفروردم 10% | E4: =100/10 -> 10 | F4: =+B4/E4 -> 0.5 | G4: =+C4*A4 -> 200 | H4: 0.05 | I4: 5 | J4: 16000 | K4: بناء محارة وعزل40% | L4: =100/40 -> 2.5 | M4: =+B4/L4 -> 2 | N4: =+J4*A4 -> 800 | O4: 0.05 | P4: 5 | Q4: 14000 | R4: عزل 35% | S4: =100/35 -> 2.857142857 | T4: =+P4/S4 -> 1.75 | U4: =+Q4*O4 -> 700 | V4: 0.05 | W4: 5 | X4: 2000 | Y4: مواسير صرف ورى5% | Z4: =100/5 -> 20 | AA4: =+W4/Z4 -> 0.25 | AB4: =+X4*V4 -> 100 | AC4: 0.05 | AD4: 5 | AE4: 4000 | AF4: سور10% | AG4: =100/10 -> 10 | AH4: =+AD4/AG4 -> 0.5 | AI4: =+AE4*AC4 -> 200
A5: 0.1 | B5: 10 | C5: =+C4 -> 4000 | D5: =+D4 -> حفروردم 10% | E5: =+E4 -> 10 | F5: 1 | G5: 400 | H5: 0.1 | I5: 10 | J5: =+J4 -> 16000 | K5: =+K4 -> بناء محارة وعزل40% | L5: =+L4 -> 2.5 | M5: =+B5/L5 -> 4 | N5: =+J5*A5 -> 1600 | O5: 0.1 | P5: 10 | Q5: =+Q4 -> 14000 | R5: =+R4 -> عزل 35% | S5: =+S4 -> 2.857142857 | T5: 3.5 | U5: 1400 | V5: 0.1 | W5: 10 | X5: =+X4 -> 2000 | Y5: =+Y4 -> مواسير صرف ورى5% | Z5: =+Z4 -> 20 | AA5: 0.5 | AB5: 200 | AC5: 0.1 | AD5: 10 | AE5: =+AE4 -> 4000 | AF5: =+AF4 -> سور10% | AG5: =+AG4 -> 10 | AH5: 1 | AI5: 400
A6: 0.15 | B6: 15 | C6: =+C5 -> 4000 | D6: حفروردم 10% | E6: 10 | F6: 1.5 | G6: 600 | H6: 0.15 | I6: 15 | J6: =+J5 -> 16000 | K6: بناء محارة وعزل40% | L6: 2.5 | M6: 6 | N6: 2400 | O6: 0.15 | P6: 15 | Q6: =+Q5 -> 14000 | R6: عزل 35% | S6: 2.857142857 | T6: 5.25 | U6: 2100 | V6: 0.15 | W6: 15 | X6: =+X5 -> 2000 | Y6: مواسير صرف ورى5% | Z6: 20 | AA6: 0.75 | AB6: 300 | AC6: 0.15 | AD6: 15 | AE6: =+AE5 -> 4000 | AF6: سور10% | AG6: 10 | AH6: 1.5 | AI6: 600
A7: 0.2 | B7: 20 | C7: 4000 | D7: حفروردم 10% | E7: 10 | F7: 2 | G7: 800 | H7: 0.2 | I7: 20 | J7: 16000 | K7: بناء محارة وعزل40% | L7: 2.5 | M7: 8 | N7: 3200 | O7: 0.2 | P7: 20 | Q7: =+Q6 -> 14000 | R7: عزل 35% | S7: 2.857142857 | T7: 7 | U7: 2800 | V7: 0.2 | W7: 20 | X7: =+X6 -> 2000 | Y7: مواسير صرف ورى5% | Z7: 20 | AA7: 1 | AB7: 400 | AC7: 0.2 | AD7: 20 | AE7: =+AE6 -> 4000 | AF7: سور10% | AG7: 10 | AH7: 2 | AI7: 800
A8: 0.25 | B8: 25 | C8: 4000 | D8: حفروردم 10% | E8: 10 | F8: 2.5 | G8: 1000 | H8: 0.25 | I8: 25 | J8: 16000 | K8: بناء محارة وعزل40% | L8: 2.5 | M8: 10 | N8: 4000 | O8: 0.25 | P8: 25 | Q8: =+Q7 -> 14000 | R8: عزل 35% | S8: 2.857142857 | T8: 8.75 | U8: 3500 | V8: 0.25 | W8: 25 | X8: =+X7 -> 2000 | Y8: مواسير صرف ورى5% | Z8: 20 | AA8: 1.25 | AB8: 500 | AC8: 0.25 | AD8: 25 | AE8: =+AE7 -> 4000 | AF8: سور10% | AG8: 10 | AH8: 2.5 | AI8: 1000
A9: 0.3 | B9: 30 | C9: 4000 | D9: حفروردم 10% | E9: 10 | F9: 3 | G9: 1200 | H9: 0.3 | I9: 30 | J9: 16000 | K9: بناء محارة وعزل40% | L9: 2.5 | M9: 12 | N9: 4800 | O9: 0.3 | P9: 30 | Q9: =+Q8 -> 14000 | R9: عزل 35% | S9: 2.857142857 | T9: 10.5 | U9: 4200 | V9: 0.3 | W9: 30 | X9: =+X8 -> 2000 | Y9: مواسير صرف ورى5% | Z9: 20 | AA9: 1.5 | AB9: 600 | AC9: 0.3 | AD9: 30 | AE9: =+AE8 -> 4000 | AF9: سور10% | AG9: 10 | AH9: 3 | AI9: 1200
A10: 0.35 | B10: 35 | C10: 4000 | D10: حفروردم 10% | E10: 10 | F10: 3.5 | G10: 1400 | H10: 0.35 | I10: 35 | J10: 16000 | K10: بناء محارة وعزل40% | L10: 2.5 | M10: 14 | N10: 5600 | O10: 0.35 | P10: 35 | Q10: =+Q9 -> 14000 | R10: عزل 35% | S10: 2.857142857 | T10: 12.25 | U10: 4900 | V10: 0.35 | W10: 35 | X10: =+X9 -> 2000 | Y10: مواسير صرف ورى5% | Z10: 20 | AA10: 1.75 | AB10: 700 | AC10: 0.35 | AD10: 35 | AE10: =+AE9 -> 4000 | AF10: سور10% | AG10: 10 | AH10: 3.5 | AI10: 1400
A11: 0.4 | B11: 40 | C11: 4000 | D11: حفروردم 10% | E11: 10 | F11: 4 | G11: 1600 | H11: 0.4 | I11: 40 | J11: 16000 | K11: بناء محارة وعزل40% | L11: 2.5 | M11: 16 | N11: 6400 | O11: 0.4 | P11: 40 | Q11: =+Q10 -> 14000 | R11: عزل 35% | S11: 2.857142857 | T11: 14 | U11: 5600 | V11: 0.4 | W11: 40 | X11: =+X10 -> 2000 | Y11: مواسير صرف ورى5% | Z11: 20 | AA11: 2 | AB11: 800 | AC11: 0.4 | AD11: 40 | AE11: =+AE10 -> 4000 | AF11: سور10% | AG11: 10 | AH11: 4 | AI11: 1600
A12: 0.45 | B12: 45 | C12: 4000 | D12: حفروردم 10% | E12: 10 | F12: 4.5 | G12: 1800 | H12: 0.45 | I12: 45 | J12: 16000 | K12: بناء محارة وعزل40% | L12: 2.5 | M12: 18 | N12: 7200 | O12: 0.45 | P12: 45 | Q12: =+Q11 -> 14000 | R12: عزل 35% | S12: 2.857142857 | T12: 15.75 | U12: 6300 | V12: 0.45 | W12: 45 | X12: =+X11 -> 2000 | Y12: مواسير صرف ورى5% | Z12: 20 | AA12: 2.25 | AB12: 900 | AC12: 0.45 | AD12: 45 | AE12: =+AE11 -> 4000 | AF12: سور10% | AG12: 10 | AH12: 4.5 | AI12: 1800
A13: 0.5 | B13: 50 | C13: 4000 | D13: حفروردم 10% | E13: 10 | F13: 5 | G13: 2000 | H13: 0.5 | I13: 50 | J13: 16000 | K13: بناء محارة وعزل40% | L13: 2.5 | M13: 20 | N13: 8000 | O13: 0.5 | P13: 50 | Q13: =+Q12 -> 14000 | R13: عزل 35% | S13: 2.857142857 | T13: 17.5 | U13: 7000 | V13: 0.5 | W13: 50 | X13: =+X12 -> 2000 | Y13: مواسير صرف ورى5% | Z13: 20 | AA13: 2.5 | AB13: 1000 | AC13: 0.5 | AD13: 50 | AE13: =+AE12 -> 4000 | AF13: سور10% | AG13: 10 | AH13: 5 | AI13: 2000
A14: 0.55 | B14: 55 | C14: 4000 | D14: حفروردم 10% | E14: 10 | F14: 5.5 | G14: 2200 | H14: 0.55 | I14: 55 | J14: 16000 | K14: بناء محارة وعزل40% | L14: 2.5 | M14: 22 | N14: 8800 | O14: 0.55 | P14: 55 | Q14: =+Q13 -> 14000 | R14: عزل 35% | S14: 2.857142857 | T14: 19.25 | U14: 7700 | V14: 0.55 | W14: 55 | X14: =+X13 -> 2000 | Y14: مواسير صرف ورى5% | Z14: 20 | AA14: 2.75 | AB14: 1100 | AC14: 0.55 | AD14: 55 | AE14: =+AE13 -> 4000 | AF14: سور10% | AG14: 10 | AH14: 5.5 | AI14: 2200
A15: 0.6 | B15: 60 | C15: 4000 | D15: حفروردم 10% | E15: 10 | F15: 6 | G15: 2400 | H15: 0.6 | I15: 60 | J15: 16000 | K15: بناء محارة وعزل40% | L15: 2.5 | M15: 24 | N15: 9600 | O15: 0.6 | P15: 60 | Q15: =+Q14 -> 14000 | R15: عزل 35% | S15: 2.857142857 | T15: 21 | U15: 8400 | V15: 0.6 | W15: 60 | X15: =+X14 -> 2000 | Y15: مواسير صرف ورى5% | Z15: 20 | AA15: 3 | AB15: 1200 | AC15: 0.6 | AD15: 60 | AE15: =+AE14 -> 4000 | AF15: سور10% | AG15: 10 | AH15: 6 | AI15: 2400
A16: 0.65 | B16: 65 | C16: 4000 | D16: حفروردم 10% | E16: 10 | F16: 6.5 | G16: 2600 | H16: 0.65 | I16: 65 | J16: 16000 | K16: بناء محارة وعزل40% | L16: 2.5 | M16: 26 | N16: 10400 | O16: 0.65 | P16: 65 | Q16: =+Q15 -> 14000 | R16: عزل 35% | S16: 2.857142857 | T16: 22.75 | U16: 9100 | V16: 0.65 | W16: 65 | X16: =+X15 -> 2000 | Y16: مواسير صرف ورى5% | Z16: 20 | AA16: 3.25 | AB16: 1300 | AC16: 0.65 | AD16: 65 | AE16: =+AE15 -> 4000 | AF16: سور10% | AG16: 10 | AH16: 6.5 | AI16: 2600
A17: 0.7 | B17: 70 | C17: 4000 | D17: حفروردم 10% | E17: 10 | F17: 7 | G17: 2800 | H17: 0.7 | I17: 70 | J17: 16000 | K17: بناء محارة وعزل40% | L17: 2.5 | M17: 28 | N17: 11200 | O17: 0.7 | P17: 70 | Q17: =+Q16 -> 14000 | R17: عزل 35% | S17: 2.857142857 | T17: 24.5 | U17: 9800 | V17: 0.7 | W17: 70 | X17: =+X16 -> 2000 | Y17: مواسير صرف ورى5% | Z17: 20 | AA17: 3.5 | AB17: 1400 | AC17: 0.7 | AD17: 70 | AE17: =+AE16 -> 4000 | AF17: سور10% | AG17: 10 | AH17: 7 | AI17: 2800
A18: 0.75 | B18: 75 | C18: 4000 | D18: حفروردم 10% | E18: 10 | F18: 7.5 | G18: 3000 | H18: 0.75 | I18: 75 | J18: 16000 | K18: بناء محارة وعزل40% | L18: 2.5 | M18: 30 | N18: 12000 | O18: 0.75 | P18: 75 | Q18: =+Q17 -> 14000 | R18: عزل 35% | S18: 2.857142857 | T18: 26.25 | U18: 10500 | V18: 0.75 | W18: 75 | X18: =+X17 -> 2000 | Y18: مواسير صرف ورى5% | Z18: 20 | AA18: 3.75 | AB18: 1500 | AC18: 0.75 | AD18: 75 | AE18: =+AE17 -> 4000 | AF18: سور10% | AG18: 10 | AH18: 7.5 | AI18: 3000
A19: 0.8 | B19: 80 | C19: 4000 | D19: حفروردم 10% | E19: 10 | F19: 8 | G19: 3200 | H19: 0.8 | I19: 80 | J19: 16000 | K19: بناء محارة وعزل40% | L19: 2.5 | M19: 32 | N19: 12800 | O19: 0.8 | P19: 80 | Q19: =+Q18 -> 14000 | R19: عزل 35% | S19: 2.857142857 | T19: 28 | U19: 11200 | V19: 0.8 | W19: 80 | X19: =+X18 -> 2000 | Y19: مواسير صرف ورى5% | Z19: 20 | AA19: 4 | AB19: 1600 | AC19: 0.8 | AD19: 80 | AE19: =+AE18 -> 4000 | AF19: سور10% | AG19: 10 | AH19: 8 | AI19: 3200
A20: 0.85 | B20: 85 | C20: 4000 | D20: حفروردم 10% | E20: 10 | F20: 8.5 | G20: 3400 | H20: 0.85 | I20: 85 | J20: 16000 | K20: بناء محارة وعزل40% | L20: 2.5 | M20: 34 | N20: 13600 | O20: 0.85 | P20: 85 | Q20: =+Q19 -> 14000 | R20: عزل 35% | S20: 2.857142857 | T20: 29.75 | U20: 11900 | V20: 0.85 | W20: 85 | X20: =+X19 -> 2000 | Y20: مواسير صرف ورى5% | Z20: 20 | AA20: 4.25 | AB20: 1700 | AC20: 0.85 | AD20: 85 | AE20: =+AE19 -> 4000 | AF20: سور10% | AG20: 10 | AH20: 8.5 | AI20: 3400
A21: 0.9 | B21: 90 | C21: 4000 | D21: حفروردم 10% | E21: 10 | F21: 9 | G21: 3600 | H21: 0.9 | I21: 90 | J21: 16000 | K21: بناء محارة وعزل40% | L21: 2.5 | M21: 36 | N21: 14400 | O21: 0.9 | P21: 90 | Q21: =+Q20 -> 14000 | R21: عزل 35% | S21: 2.857142857 | T21: 31.5 | U21: 12600 | V21: 0.9 | W21: 90 | X21: =+X20 -> 2000 | Y21: مواسير صرف ورى5% | Z21: 20 | AA21: 4.5 | AB21: 1800 | AC21: 0.9 | AD21: 90 | AE21: =+AE20 -> 4000 | AF21: سور10% | AG21: 10 | AH21: 9 | AI21: 3600
A22: 0.95 | B22: 95 | C22: =+C21 -> 4000 | D22: حفروردم 10% | E22: 10 | F22: 9.5 | G22: 3800 | H22: 0.95 | I22: 95 | J22: 16000 | K22: بناء محارة وعزل40% | L22: 2.5 | M22: 38 | N22: 15200 | O22: 0.95 | P22: 95 | Q22: =+Q21 -> 14000 | R22: عزل 35% | S22: 2.857142857 | T22: 33.25 | U22: 13300 | V22: 0.95 | W22: 95 | X22: =+X21 -> 2000 | Y22: مواسير صرف ورى5% | Z22: 20 | AA22: 4.75 | AB22: 1900 | AC22: 0.95 | AD22: 95 | AE22: =+AE21 -> 4000 | AF22: سور10% | AG22: 10 | AH22: 9.5 | AI22: 3800
A23: 1 | B23: 100 | C23: 4000 | D23: حفروردم 10% | E23: 10 | F23: 10 | G23: 4000 | H23: 1 | I23: 100 | J23: 16000 | K23: بناء محارة وعزل40% | L23: 2.5 | M23: 40 | N23: 16000 | O23: 1 | P23: 100 | Q23: =+Q22 -> 14000 | R23: عزل 35% | S23: 2.857142857 | T23: 35 | U23: 14000 | V23: 1 | W23: 100 | X23: =+X22 -> 2000 | Y23: مواسير صرف ورى5% | Z23: 20 | AA23: 5 | AB23: 2000 | AC23: 1 | AD23: 100 | AE23: =+AE22 -> 4000 | AF23: سور10% | AG23: 10 | AH23: 10 | AI23: 4000
C24: =+C23 -> 4000 | G24: =+G23 -> 4000 | J24: =+J23 -> 16000 | N24: =+N23 -> 16000

Sheet الشغل
J2: =SUBTOTAL(9,J5:J24) -> 66900 | N2: =IF(G5<>"",IF(G5=القائمة!E2,VLOOKUP($H5,'النسب '!$A$3:$G$23,6,0),""),AND(IF(G5=القائمة!E3,VLOOKUP($H5,'النسب '!$H$3:$N$23,6,0),""),AND(IF(G5=القائمة!E4,VLOOKUP($H5,'النسب '!$O$3:$U$23,6,0),"")),AND(IF(G5=القائمة!E4,VLOOKUP($H5,'النسب '!$O$3:$U$23,6,0),"")),AND(IF(G5=القائمة!E6,VLOOKUP($H5,'النسب '!$AC$2:$AI$23,6,0),"")))) -> 10 | P2: =OR(IF(G5=القائمة!E3,VLOOKUP($H5,'النسب '!$H$3:$N$23,6,0),""),IF(G5=القائمة!E4,VLOOKUP($H5,'النسب '!$O$3:$U$23,6,0),""),IF(G5=القائمة!E4,VLOOKUP($H5,'النسب '!$O$3:$U$23,6,0),""),IF(G5=القائمة!E6,VLOOKUP($H5,'النسب '!$AC$2:$AI$23,6,0),"")) -> 
N3: =IF(G5=القائمة!E2,VLOOKUP($H5,'النسب '!$A$3:$G$23,6,0),"") -> 10 | O3: =IF(G5=القائمة!E3,VLOOKUP($H5,'النسب '!$H$3:$N$23,6,0),"") ->  | P3: =IF(G5=القائمة!E4,VLOOKUP($H5,'النسب '!$O$3:$U$23,6,0),"") ->  | Q3: =IF(G5=القائمة!E5,VLOOKUP($H5,'النسب '!$V$3:$AB$23,6,0),"") ->  | R3: =IF(G5=القائمة!E6,VLOOKUP($H5,'النسب '!$AC$2:$AI$23,6,0),"") -> 
B4: التاريخ | C4: المقاول | D4: الكلاستر | E4: الصوبة | F4: عدد العمال | G4: العمل | H4: النسبة يدوى | I4: العمل من صفحة النسبة | J4: القيمة المستحقة من صفحة النسبة | L4: المقاول | M4: القيمة المستحقة | N4: جدول 1 | O4: جدول 2 | P4: جدول 3 | Q4: جدول 4 | R4: جدول 5
B5: 2019-08-28 | C5: خالد مهدي | D5: 56 | G5: 1حفر وردم 10%0 | H5: 1 | I5: =IF($H5="","",INDEX(OFFSET(OFFSET(Percent,,5),,7*(MATCH($G5,Work,0)-1)),MATCH($H5,Percent,0),0)) -> 10 | J5: =IF($H5="","",INDEX(OFFSET(OFFSET(Percent,,6),,7*(MATCH($G5,Work,0)-1)),MATCH($H5,Percent,0),0)) -> 4000 | L5: =IF(+C5="","",+C5) -> خالد مهدي | M5: =IF(+C5="","",+J5) -> 4000 | N5: =VLOOKUP($H5,'النسب '!$A$3:$G$23,6,0) -> 10 | O5: =VLOOKUP($H5,'النسب '!$H$3:$N$23,6,0) -> 40 | P5: =VLOOKUP($H5,'النسب '!$O$3:$U$23,6,0) -> 35 | Q5: =VLOOKUP($H5,'النسب '!$V$3:$AB$23,6,0) -> 5 | R5: =VLOOKUP($H5,'النسب '!$AC$2:$AI$23,6,0) -> 10
B6: 2019-08-28 | C6: خالد مهدي | D6: 56 | G6: 2بناء ومحارة وعزل40%0 | H6: 0.75 | I6: 30 | J6: 12000 | L6: =IF(+C6="","",+C6) -> خالد مهدي | M6: =IF(+C6="","",+J6) -> 12000 | N6: =IF(G6=القائمة!E5,VLOOKUP($H8,'النسب '!$A$3:$G$23,6,0),"") ->  | O6: =IF(G6=القائمة!E6,VLOOKUP($H8,'النسب '!$H$3:$N$23,6,0),"") ->  | P6: =IF(G6=القائمة!E7,VLOOKUP($H8,'النسب '!$O$3:$U$23,6,0),"") ->  | Q6: =IF(G6=القائمة!E8,VLOOKUP($H8,'النسب '!$V$3:$AB$23,6,0),"") ->  | R6: =IF(G6=القائمة!E9,VLOOKUP($H8,'النسب '!$AC$2:$AI$23,6,0),"") -> 
B7: 2019-08-28 | C7: خالد مهدي | D7: 56 | G7: 3عـــــــــــــــــزل35%0 | H7: 0.45 | I7: 15.75 | J7: 6300 | L7: خالد مهدي | M7: 6300
B8: 2019-08-28 | C8: خالد مهدي | D8: 57 | G8: 1حفر وردم 10%0 | H8: 1 | I8: 10 | J8: 4000 | L8: خالد مهدي | M8: 4000
B9: 2019-08-28 | C9: خالد مهدي | D9: 57 | G9: 2بناء ومحارة وعزل40%0 | H9: 0.75 | I9: 30 | J9: 12000 | L9: خالد مهدي | M9: 12000
B10: 2019-08-28 | C10: خالد مهدي | D10: 57 | G10: 3عـــــــــــــــــزل35%0 | H10: 0.45 | I10: 15.75 | J10: 6300 | L10: خالد مهدي | M10: 6300
B11: 2019-08-28 | C11: خالد مهدي | D11: 58 | G11: 1حفر وردم 10%0 | H11: 1 | I11: 10 | J11: 4000 | L11: خالد مهدي | M11: 4000
B12: 2019-08-28 | C12: خالد مهدي | D12: 58 | G12: 2بناء ومحارة وعزل40%0 | H12: 0.75 | I12: 30 | J12: 12000 | L12: خالد مهدي | M12: 12000
B13: 2019-08-28 | C13: خالد مهدي | D13: 58 | G13: 3عـــــــــــــــــزل35%0 | H13: 0.45 | I13: 15.75 | J13: 6300 | L13: خالد مهدي | M13: 6300
G14: =IFERROR(VLOOKUP(#REF!,القائمة!$D$2:$E$6,2,0),"") -> 
G15: =IFERROR(VLOOKUP(#REF!,القائمة!$D$2:$E$6,2,0),"") -> 
G16: =IFERROR(VLOOKUP(#REF!,القائمة!$D$2:$E$6,2,0),"") -> 
G17: =IFERROR(VLOOKUP(#REF!,القائمة!$D$2:$E$6,2,0),"") -> 
G18: =IFERROR(VLOOKUP(#REF!,القائمة!$D$2:$E$6,2,0),"") -> 
G19: =IFERROR(VLOOKUP(#REF!,القائمة!$D$2:$E$6,2,0),"") -> 
G20: =IFERROR(VLOOKUP(#REF!,القائمة!$D$2:$E$6,2,0),"") -> 
G21: =IFERROR(VLOOKUP(#REF!,القائمة!$D$2:$E$6,2,0),"") -> 
G22: =IFERROR(VLOOKUP(#REF!,القائمة!$D$2:$E$6,2,0),"") -> 
G23: =IFERROR(VLOOKUP(#REF!,القائمة!$D$2:$E$6,2,0),"") -> 
G24: =IFERROR(VLOOKUP(#REF!,القائمة!$D$2:$E$6,2,0),"") -> 
G25: =IFERROR(VLOOKUP(#REF!,القائمة!$D$2:$E$6,2,0),"") -> 
G26: =IFERROR(VLOOKUP(#REF!,القائمة!$D$2:$E$6,2,0),"") -> 
G27: =IFERROR(VLOOKUP(#REF!,القائمة!$D$2:$E$6,2,0),"") -> 
G28: =IFERROR(VLOOKUP(#REF!,القائمة!$D$2:$E$6,2,0),"") -> 
G29: =IFERROR(VLOOKUP(#REF!,القائمة!$D$2:$E$6,2,0),"") -> 
G30: =IFERROR(VLOOKUP(#REF!,القائمة!$D$2:$E$6,2,0),"") -> 
G31: =IFERROR(VLOOKUP(#REF!,القائمة!$D$2:$E$6,2,0),"") -> 
G32: =IFERROR(VLOOKUP(#REF!,القائمة!$D$2:$E$6,2,0),"") -> 
G33: =IFERROR(VLOOKUP(#REF!,القائمة!$D$2:$E$6,2,0),"") -> 
G34: =IFERROR(VLOOKUP(#REF!,القائمة!$D$2:$E$6,2,0),"") -> 
G35: =IFERROR(VLOOKUP(#REF!,القائمة!$D$2:$E$6,2,0),"") -> 
G36: =IFERROR(VLOOKUP(#REF!,القائمة!$D$2:$E$6,2,0),"") -> 
G37: =IFERROR(VLOOKUP(#REF!,القائمة!$D$2:$E$6,2,0),"") -> 
G38: =IFERROR(VLOOKUP(#REF!,القائمة!$D$2:$E$6,2,0),"") -> 
G39: =IFERROR(VLOOKUP(#REF!,القائمة!$D$2:$E$6,2,0),"") -> 
G40: =IFERROR(VLOOKUP(#REF!,القائمة!$D$2:$E$6,2,0),"") -> 
G41: =IFERROR(VLOOKUP(#REF!,القائمة!$D$2:$E$6,2,0),"") -> 
G42: =IFERROR(VLOOKUP(#REF!,القائمة!$D$2:$E$6,2,0),"") -> 
G43: =IFERROR(VLOOKUP(#REF!,القائمة!$D$2:$E$6,2,0),"") -> 
G44: =IFERROR(VLOOKUP(#REF!,القائمة!$D$2:$E$6,2,0),"") -> 
G45: =IFERROR(VLOOKUP(#REF!,القائمة!$D$2:$E$6,2,0),"") -> 
G46: =IFERROR(VLOOKUP(#REF!,القائمة!$D$2:$E$6,2,0),"") -> 
G47: =IFERROR(VLOOKUP(#REF!,القائمة!$D$2:$E$6,2,0),"") -> 
G48: =IFERROR(VLOOKUP(#REF!,القائمة!$D$2:$E$6,2,0),"") -> 
G49: =IFERROR(VLOOKUP(#REF!,القائمة!$D$2:$E$6,2,0),"") -> 
G50: =IFERROR(VLOOKUP(#REF!,القائمة!$D$2:$E$6,2,0),"") -> 
G51: =IFERROR(VLOOKUP(#REF!,القائمة!$D$2:$E$6,2,0),"") -> 
G52: =IFERROR(VLOOKUP(#REF!,القائمة!$D$2:$E$6,2,0),"") -> 
G53: =IFERROR(VLOOKUP(#REF!,القائمة!$D$2:$E$6,2,0),"") -> 
G54: =IFERROR(VLOOKUP(#REF!,القائمة!$D$2:$E$6,2,0),"") -> 
G55: =IFERROR(VLOOKUP(#REF!,القائمة!$D$2:$E$6,2,0),"") -> 
G56: =IFERROR(VLOOKUP(#REF!,القائمة!$D$2:$E$6,2,0),"") -> 
G57: =IFERROR(VLOOKUP(#REF!,القائمة!$D$2:$E$6,2,0),"") -> 
G58: =IFERROR(VLOOKUP(#REF!,القائمة!$D$2:$E$6,2,0),"") -> 
G59: =IFERROR(VLOOKUP(#REF!,القائمة!$D$2:$E$6,2,0),"") -> 
G60: =IFERROR(VLOOKUP(#REF!,القائمة!$D$2:$E$6,2,0),"") -> 
G61: =IFERROR(VLOOKUP(#REF!,القائمة!$D$2:$E$6,2,0),"") -> 
G62: =IFERROR(VLOOKUP(#REF!,القائمة!$D$2:$E$6,2,0),"") -> 
G63: =IFERROR(VLOOKUP(#REF!,القائمة!$D$2:$E$6,2,0),"") -> 
G64: =IFERROR(VLOOKUP(#REF!,القائمة!$D$2:$E$6,2,0),"") ->  | P64: =15000*60/100 -> 9000
G65: =IFERROR(VLOOKUP(#REF!,القائمة!$D$2:$E$6,2,0),"") -> 
G66: =IFERROR(VLOOKUP(#REF!,القائمة!$D$2:$E$6,2,0),"") -> 
G67: =IFERROR(VLOOKUP(#REF!,القائمة!$D$2:$E$6,2,0),"") -> 
G68: =IFERROR(VLOOKUP(#REF!,القائمة!$D$2:$E$6,2,0),"") -> 
G69: =IFERROR(VLOOKUP(#REF!,القائمة!$D$2:$E$6,2,0),"") ->  | I69: =IF($H69="","",INDEX(OFFSET(OFFSET(Percent,,5),,7*(MATCH($G69,Work,0)-1)),MATCH($H69,Percent,0),0)) ->  | J69: =IF($H69="","",INDEX(OFFSET(OFFSET(Percent,,6),,7*(MATCH($G69,Work,0)-1)),MATCH($H69,Percent,0),0)) -> 
G70: =IFERROR(VLOOKUP(#REF!,القائمة!$D$2:$E$6,2,0),"") ->  | L70: =IF(+C70="","",+C70) ->  | M70: =IF(+C70="","",+J70) -> 
G71: =IFERROR(VLOOKUP(#REF!,القائمة!$D$2:$E$6,2,0),"") -> 
G72: =IFERROR(VLOOKUP(#REF!,القائمة!$D$2:$E$6,2,0),"") -> 
G73: =IFERROR(VLOOKUP(#REF!,القائمة!$D$2:$E$6,2,0),"") -> 
G74: =IFERROR(VLOOKUP(#REF!,القائمة!$D$2:$E$6,2,0),"") -> 
G75: =IFERROR(VLOOKUP(#REF!,القائمة!$D$2:$E$6,2,0),"") -> 
G76: =IFERROR(VLOOKUP(#REF!,القائمة!$D$2:$E$6,2,0),"") -> 
G77: =IFERROR(VLOOKUP(#REF!,القائمة!$D$2:$E$6,2,0),"") -> 
G78: =IFERROR(VLOOKUP(#REF!,القائمة!$D$2:$E$6,2,0),"") -> 
G79: =IFERROR(VLOOKUP(#REF!,القائمة!$D$2:$E$6,2,0),"") -> 
G80: =IFERROR(VLOOKUP(#REF!,القائمة!$D$2:$E$6,2,0),"") -> 
G81: =IFERROR(VLOOKUP(#REF!,القائمة!$D$2:$E$6,2,0),"") -> 
G82: =IFERROR(VLOOKUP(#REF!,القائمة!$D$2:$E$6,2,0),"") -> 
G83: =IFERROR(VLOOKUP(#REF!,القائمة!$D$2:$E$6,2,0),"") -> 
G84: =IFERROR(VLOOKUP(#REF!,القائمة!$D$2:$E$6,2,0),"") -> 
G85: =IFERROR(VLOOKUP(#REF!,القائمة!$D$2:$E$6,2,0),"") -> 
G86: =IFERROR(VLOOKUP(#REF!,القائمة!$D$2:$E$6,2,0),"") -> 
G87: =IFERROR(VLOOKUP(#REF!,القائمة!$D$2:$E$6,2,0),"") -> 
G88: =IFERROR(VLOOKUP(#REF!,القائمة!$D$2:$E$6,2,0),"") -> 
G89: =IFERROR(VLOOKUP(#REF!,القائمة!$D$2:$E$6,2,0),"") -> 
G90: =IFERROR(VLOOKUP(#REF!,القائمة!$D$2:$E$6,2,0),"") -> 
G91: =IFERROR(VLOOKUP(#REF!,القائمة!$D$2:$E$6,2,0),"") -> 
G92: =IFERROR(VLOOKUP(#REF!,القائمة!$D$2:$E$6,2,0),"") -> 
G93: =IFERROR(VLOOKUP(#REF!,القائمة!$D$2:$E$6,2,0),"") -> 
G94: =IFERROR(VLOOKUP(#REF!,القائمة!$D$2:$E$6,2,0),"") -> 
G95: =IFERROR(VLOOKUP(#REF!,القائمة!$D$2:$E$6,2,0),"") -> 
G96: =IFERROR(VLOOKUP(#REF!,القائمة!$D$2:$E$6,2,0),"") -> 
G97: =IFERROR(VLOOKUP(#REF!,القائمة!$D$2:$E$6,2,0),"") -> 
G98: =IFERROR(VLOOKUP(#REF!,القائمة!$D$2:$E$6,2,0),"") -> 
G99: =IFERROR(VLOOKUP(#REF!,القائمة!$D$2:$E$6,2,0),"") -> 
G100: =IFERROR(VLOOKUP(#REF!,القائمة!$D$2:$E$6,2,0),"") -> 
G101: =IFERROR(VLOOKUP(#REF!,القائمة!$D$2:$E$6,2,0),"") -> 
G102: =IFERROR(VLOOKUP(#REF!,القائمة!$D$2:$E$6,2,0),"") -> 
G103: =IFERROR(VLOOKUP(#REF!,القائمة!$D$2:$E$6,2,0),"") -> 
G104: =IFERROR(VLOOKUP(#REF!,القائمة!$D$2:$E$6,2,0),"") -> 
G105: =IFERROR(VLOOKUP(#REF!,القائمة!$D$2:$E$6,2,0),"") -> 
G106: =IFERROR(VLOOKUP(#REF!,القائمة!$D$2:$E$6,2,0),"") -> 
G107: =IFERROR(VLOOKUP(#REF!,القائمة!$D$2:$E$6,2,0),"") -> 
G108: =IFERROR(VLOOKUP(#REF!,القائمة!$D$2:$E$6,2,0),"") -> 
G109: =IFERROR(VLOOKUP(#REF!,القائمة!$D$2:$E$6,2,0),"") -> 
G110: =IFERROR(VLOOKUP(#REF!,القائمة!$D$2:$E$6,2,0),"") -> 
G111: =IFERROR(VLOOKUP(#REF!,القائمة!$D$2:$E$6,2,0),"") -> 
G112: =IFERROR(VLOOKUP(#REF!,القائمة!$D$2:$E$6,2,0),"") -> 
G113: =IFERROR(VLOOKUP(#REF!,القائمة!$D$2:$E$6,2,0),"") -> 
G114: =IFERROR(VLOOKUP(#REF!,القائمة!$D$2:$E$6,2,0),"") -> 
G115: =IFERROR(VLOOKUP(#REF!,القائمة!$D$2:$E$6,2,0),"") -> 
G116: =IFERROR(VLOOKUP(#REF!,القائمة!$D$2:$E$6,2,0),"") -> 
G117: =IFERROR(VLOOKUP(#REF!,القائمة!$D$2:$E$6,2,0),"") -> 
G118: =IFERROR(VLOOKUP(#REF!,القائمة!$D$2:$E$6,2,0),"") -> 
G119: =IFERROR(VLOOKUP(#REF!,القائمة!$D$2:$E$6,2,0),"") -> 
G120: =IFERROR(VLOOKUP(#REF!,القائمة!$D$2:$E$6,2,0),"") -> 
G121: =IFERROR(VLOOKUP(#REF!,القائمة!$D$2:$E$6,2,0),"") -> 
G122: =IFERROR(VLOOKUP(#REF!,القائمة!$D$2:$E$6,2,0),"") -> 
G123: =IFERROR(VLOOKUP(#REF!,القائمة!$D$2:$E$6,2,0),"") -> 
G124: =IFERROR(VLOOKUP(#REF!,القائمة!$D$2:$E$6,2,0),"") -> 
G125: =IFERROR(VLOOKUP(#REF!,القائمة!$D$2:$E$6,2,0),"") -> 
G126: =IFERROR(VLOOKUP(#REF!,القائمة!$D$2:$E$6,2,0),"") -> 
G127: =IFERROR(VLOOKUP(#REF!,القائمة!$D$2:$E$6,2,0),"") -> 
G128: =IFERROR(VLOOKUP(#REF!,القائمة!$D$2:$E$6,2,0),"") -> 
G129: =IFERROR(VLOOKUP(#REF!,القائمة!$D$2:$E$6,2,0),"") -> 
G130: =IFERROR(VLOOKUP(#REF!,القائمة!$D$2:$E$6,2,0),"") -> 
G131: =IFERROR(VLOOKUP(#REF!,القائمة!$D$2:$E$6,2,0),"") -> 
G132: =IFERROR(VLOOKUP(#REF!,القائمة!$D$2:$E$6,2,0),"") -> 
G133: =IFERROR(VLOOKUP(#REF!,القائمة!$D$2:$E$6,2,0),"") ->  | I133: =IF($H133="","",INDEX(OFFSET(OFFSET(Percent,,5),,7*(MATCH($G133,Work,0)-1)),MATCH($H133,Percent,0),0)) ->  | J133: =IF($H133="","",INDEX(OFFSET(OFFSET(Percent,,6),,7*(MATCH($G133,Work,0)-1)),MATCH($H133,Percent,0),0)) -> 
G134: =IFERROR(VLOOKUP(#REF!,القائمة!$D$2:$E$6,2,0),"") ->  | L134: =IF(+C134="","",+C134) ->  | M134: =IF(+C134="","",+J134) -> 
G135: =IFERROR(VLOOKUP(#REF!,القائمة!$D$2:$E$6,2,0),"") -> 
G136: =IFERROR(VLOOKUP(#REF!,القائمة!$D$2:$E$6,2,0),"") -> 
G137: =IFERROR(VLOOKUP(#REF!,القائمة!$D$2:$E$6,2,0),"") -> 
G138: =IFERROR(VLOOKUP(#REF!,القائمة!$D$2:$E$6,2,0),"") -> 
G139: =IFERROR(VLOOKUP(#REF!,القائمة!$D$2:$E$6,2,0),"") -> 
G140: =IFERROR(VLOOKUP(#REF!,القائمة!$D$2:$E$6,2,0),"") -> 
G141: =IFERROR(VLOOKUP(#REF!,القائمة!$D$2:$E$6,2,0),"") -> 
G142: =IFERROR(VLOOKUP(#REF!,القائمة!$D$2:$E$6,2,0),"") -> 
G143: =IFERROR(VLOOKUP(#REF!,القائمة!$D$2:$E$6,2,0),"") -> 
G144: =IFERROR(VLOOKUP(#REF!,القائمة!$D$2:$E$6,2,0),"") -> 
G145: =IFERROR(VLOOKUP(#REF!,القائمة!$D$2:$E$6,2,0),"") -> 
G146: =IFERROR(VLOOKUP(#REF!,القائمة!$D$2:$E$6,2,0),"") -> 
G147: =IFERROR(VLOOKUP(#REF!,القائمة!$D$2:$E$6,2,0),"") -> 
G148: =IFERROR(VLOOKUP(#REF!,القائمة!$D$2:$E$6,2,0),"") -> 
G149: =IFERROR(VLOOKUP(#REF!,القائمة!$D$2:$E$6,2,0),"") -> 
G150: =IFERROR(VLOOKUP(#REF!,القائمة!$D$2:$E$6,2,0),"") -> 
G151: =IFERROR(VLOOKUP(#REF!,القائمة!$D$2:$E$6,2,0),"") -> 
G152: =IFERROR(VLOOKUP(#REF!,القائمة!$D$2:$E$6,2,0),"") -> 
G153: =IFERROR(VLOOKUP(#REF!,القائمة!$D$2:$E$6,2,0),"") -> 
G154: =IFERROR(VLOOKUP(#REF!,القائمة!$D$2:$E$6,2,0),"") -> 
G155: =IFERROR(VLOOKUP(#REF!,القائمة!$D$2:$E$6,2,0),"") -> 
G156: =IFERROR(VLOOKUP(#REF!,القائمة!$D$2:$E$6,2,0),"") -> 
G157: =IFERROR(VLOOKUP(#REF!,القائمة!$D$2:$E$6,2,0),"") -> 
G158: =IFERROR(VLOOKUP(#REF!,القائمة!$D$2:$E$6,2,0),"") -> 
G159: =IFERROR(VLOOKUP(#REF!,القائمة!$D$2:$E$6,2,0),"") -> 
G160: =IFERROR(VLOOKUP(#REF!,القائمة!$D$2:$E$6,2,0),"") -> 
G161: =IFERROR(VLOOKUP(#REF!,القائمة!$D$2:$E$6,2,0),"") -> 
G162: =IFERROR(VLOOKUP(#REF!,القائمة!$D$2:$E$6,2,0),"") -> 
G163: =IFERROR(VLOOKUP(#REF!,القائمة!$D$2:$E$6,2,0),"") -> 
G164: =IFERROR(VLOOKUP(#REF!,القائمة!$D$2:$E$6,2,0),"") -> 
G165: =IFERROR(VLOOKUP(#REF!,القائمة!$D$2:$E$6,2,0),"") -> 
G166: =IFERROR(VLOOKUP(#REF!,القائمة!$D$2:$E$6,2,0),"") -> 
G167: =IFERROR(VLOOKUP(#REF!,القائمة!$D$2:$E$6,2,0),"") -> 
G168: =IFERROR(VLOOKUP(#REF!,القائمة!$D$2:$E$6,2,0),"") -> 
G169: =IFERROR(VLOOKUP(#REF!,القائمة!$D$2:$E$6,2,0),"") -> 
G170: =IFERROR(VLOOKUP(#REF!,القائمة!$D$2:$E$6,2,0),"") -> 
G171: =IFERROR(VLOOKUP(#REF!,القائمة!$D$2:$E$6,2,0),"") -> 
G172: =IFERROR(VLOOKUP(#REF!,القائمة!$D$2:$E$6,2,0),"") -> 
G173: =IFERROR(VLOOKUP(#REF!,القائمة!$D$2:$E$6,2,0),"") -> 
G174: =IFERROR(VLOOKUP(#REF!,القائمة!$D$2:$E$6,2,0),"") -> 
G175: =IFERROR(VLOOKUP(#REF!,القائمة!$D$2:$E$6,2,0),"") -> 
G176: =IFERROR(VLOOKUP(#REF!,القائمة!$D$2:$E$6,2,0),"") -> 
G177: =IFERROR(VLOOKUP(#REF!,القائمة!$D$2:$E$6,2,0),"") -> 
G178: =IFERROR(VLOOKUP(#REF!,القائمة!$D$2:$E$6,2,0),"") -> 
G179: =IFERROR(VLOOKUP(#REF!,القائمة!$D$2:$E$6,2,0),"") -> 
G180: =IFERROR(VLOOKUP(#REF!,القائمة!$D$2:$E$6,2,0),"") -> 
G181: =IFERROR(VLOOKUP(#REF!,القائمة!$D$2:$E$6,2,0),"") -> 
G182: =IFERROR(VLOOKUP(#REF!,القائمة!$D$2:$E$6,2,0),"") -> 
G183: =IFERROR(VLOOKUP(#REF!,القائمة!$D$2:$E$6,2,0),"") -> 
G184: =IFERROR(VLOOKUP(#REF!,القائمة!$D$2:$E$6,2,0),"") -> 
G185: =IFERROR(VLOOKUP(#REF!,القائمة!$D$2:$E$6,2,0),"") -> 
G186: =IFERROR(VLOOKUP(#REF!,القائمة!$D$2:$E$6,2,0),"") -> 
G187: =IFERROR(VLOOKUP(#REF!,القائمة!$D$2:$E$6,2,0),"") -> 
G188: =IFERROR(VLOOKUP(#REF!,القائمة!$D$2:$E$6,2,0),"") -> 
G189: =IFERROR(VLOOKUP(#REF!,القائمة!$D$2:$E$6,2,0),"") -> 
G190: =IFERROR(VLOOKUP(#REF!,القائمة!$D$2:$E$6,2,0),"") -> 
G191: =IFERROR(VLOOKUP(#REF!,القائمة!$D$2:$E$6,2,0),"") -> 
G192: =IFERROR(VLOOKUP(#REF!,القائمة!$D$2:$E$6,2,0),"") -> 
G193: =IFERROR(VLOOKUP(#REF!,القائمة!$D$2:$E$6,2,0),"") -> 
G194: =IFERROR(VLOOKUP(#REF!,القائمة!$D$2:$E$6,2,0),"") -> 
G195: =IFERROR(VLOOKUP(#REF!,القائمة!$D$2:$E$6,2,0),"") -> 
G196: =IFERROR(VLOOKUP(#REF!,القائمة!$D$2:$E$6,2,0),"") -> 
G197: =IFERROR(VLOOKUP(#REF!,القائمة!$D$2:$E$6,2,0),"") ->  | I197: =IF($H197="","",INDEX(OFFSET(OFFSET(Percent,,5),,7*(MATCH($G197,Work,0)-1)),MATCH($H197,Percent,0),0)) ->  | J197: =IF($H197="","",INDEX(OFFSET(OFFSET(Percent,,6),,7*(MATCH($G197,Work,0)-1)),MATCH($H197,Percent,0),0)) -> 
G198: =IFERROR(VLOOKUP(#REF!,القائمة!$D$2:$E$6,2,0),"") ->  | L198: =IF(+C198="","",+C198) ->  | M198: =IF(+C198="","",+J198) -> 
G199: =IFERROR(VLOOKUP(#REF!,القائمة!$D$2:$E$6,2,0),"") -> 
G200: =IFERROR(VLOOKUP(#REF!,القائمة!$D$2:$E$6,2,0),"") -> 
G201: =IFERROR(VLOOKUP(#REF!,القائمة!$D$2:$E$6,2,0),"") -> 
... 299 more rows

Sheet تقرير
B2: تقرير النسب والمبلغ خلال العمليات للمقاولين | L2: =IF(+القائمة!G2="","",+القائمة!G2) -> خالد مهدي | M2: =IF(+القائمة!H2="","",+القائمة!H2) -> 66900
H3: البيان | I3: التقرير | J3: القائمة | L3: =IF(+القائمة!G3="","",+القائمة!G3) -> إيهاب | M3: =IF(+القائمة!H3="","",+القائمة!H3) -> 0
B4: المقاول | C4: العملية | D4: الكلاستر | E4: الصوبة | H4: الاجمالى القيمة | I4: =SUM(J10:J102) -> 66900 | J4: =INDEX(القائمة!$H$2:$H$24,MATCH($B$5,Names,0)) -> 66900 | L4: =IF(+القائمة!G4="","",+القائمة!G4) ->  | M4: =IF(+القائمة!H4="","",+القائمة!H4) -> 
B5: خالد مهدي | D5: 13 | H5: الاجمالى العمالة | I5: =SUM($F$10:$F$500) -> 0 | J5: =IF(B5<>"",I4-J4,"") -> 0 | L5: =IF(+القائمة!G5="","",+القائمة!G5) ->  | M5: =IF(+القائمة!H5="","",+القائمة!H5) -> 
E6: المبلغ | F6: =NoToTxt(I4,"جنيها","قرش") -> فقط ستة وستون ألف وتسعمائة جنيها | L6: =IF(+القائمة!G6="","",+القائمة!G6) ->  | M6: =IF(+القائمة!H6="","",+القائمة!H6) ->  | P6: =3.4+2.8+3.88 -> 10.08
L7: =IF(+القائمة!G7="","",+القائمة!G7) ->  | M7: =IF(+القائمة!H7="","",+القائمة!H7) ->  | P7: 1700
L8: =IF(+القائمة!G8="","",+القائمة!G8) ->  | M8: =IF(+القائمة!H8="","",+القائمة!H8) ->  | P8: =+P6*P7 -> 17136
B9: التاريخ | C9: المقاول | D9: الكلاستر | E9: الصوبة | F9: عدد العمال | G9: العمل | H9: النسبة | I9: العمل | J9: القيمة المستحقة | L9: =IF(+القائمة!G9="","",+القائمة!G9) ->  | M9: =IF(+القائمة!H9="","",+القائمة!H9) -> 
B10: 2019-08-28 | C10: خالد مهدى | D10: 56 | G10: 1حفر وردم 10%0 | H10: 1 | I10: =IF(H10="","",INDEX(OFFSET(OFFSET(Percent,,5),,7*(MATCH(G10,Work,0)-1)),MATCH(H10,Percent,0),0)) -> 10 | J10: =IF(I10="","",INDEX(OFFSET(OFFSET(Percent,,6),,7*(MATCH(G10,Work,0)-1)),MATCH(H10,Percent,0),0)) -> 4000 | L10: =IF(+القائمة!G10="","",+القائمة!G10) ->  | M10: =IF(+القائمة!H10="","",+القائمة!H10) -> 
B11: 2019-08-28 | C11: خالد مهدى | D11: 56 | G11: 2بناء ومحارة وعزل40%0 | H11: 0.75 | I11: =IF(H11="","",INDEX(OFFSET(OFFSET(Percent,,5),,7*(MATCH($G11,Work,0)-1)),MATCH($H11,Percent,0),0)) -> 30 | J11: =IF(I11="","",INDEX(OFFSET(OFFSET(Percent,,6),,7*(MATCH($G11,Work,0)-1)),MATCH($H11,Percent,0),0)) -> 12000 | L11: =IF(+القائمة!G11="","",+القائمة!G11) ->  | M11: =IF(+القائمة!H11="","",+القائمة!H11) -> 
B12: 2019-08-28 | C12: خالد مهدى | D12: 56 | G12: 3عـــــــــــــــــزل35%0 | H12: 0.45 | I12: 15.75 | J12: 6300 | L12: =IF(+القائمة!G12="","",+القائمة!G12) ->  | M12: =IF(+القائمة!H12="","",+القائمة!H12) ->  | O12: =2000+1500 -> 3500 | P12: =SUM(M12,O12) -> 3500
B13: 2019-08-28 | C13: خالد مهدى | D13: 57 | G13: 1حفر وردم 10%0 | H13: 1 | I13: 10 | J13: 4000 | L13: =IF(+القائمة!G13="","",+القائمة!G13) ->  | M13: =IF(+القائمة!H13="","",+القائمة!H13) -> 
B14: 2019-08-28 | C14: خالد مهدى | D14: 57 | G14: 2بناء ومحارة وعزل40%0 | H14: 0.75 | I14: 30 | J14: 12000 | L14: =IF(+القائمة!G14="","",+القائمة!G14) ->  | M14: =IF(+القائمة!H14="","",+القائمة!H14) -> 
B15: 2019-08-28 | C15: خالد مهدى | D15: 57 | G15: 3عـــــــــــــــــزل35%0 | H15: 0.45 | I15: 15.75 | J15: 6300 | L15: =IF(+القائمة!G15="","",+القائمة!G15) ->  | M15: =IF(+القائمة!H15="","",+القائمة!H15) -> 
B16: 2019-08-28 | C16: خالد مهدى | D16: 58 | G16: 1حفر وردم 10%0 | H16: 1 | I16: 10 | J16: 4000 | L16: =IF(+القائمة!G16="","",+القائمة!G16) ->  | M16: =IF(+القائمة!H16="","",+القائمة!H16) -> 
B17: 2019-08-28 | C17: خالد مهدى | D17: 58 | G17: 2بناء ومحارة وعزل40%0 | H17: 0.75 | I17: 30 | J17: 12000 | L17: =IF(+القائمة!G17="","",+القائمة!G17) ->  | M17: =IF(+القائمة!H17="","",+القائمة!H17) -> 
B18: 2019-08-28 | C18: خالد مهدى | D18: 58 | G18: 3عـــــــــــــــــزل35%0 | H18: 0.45 | I18: 15.75 | J18: 6300 | L18: =IF(+القائمة!G18="","",+القائمة!G18) ->  | M18: =IF(+القائمة!H18="","",+القائمة!H18) -> 
L19: =IF(+القائمة!G19="","",+القائمة!G19) ->  | M19: =IF(+القائمة!H19="","",+القائمة!H19) -> 
L20: =IF(+القائمة!G20="","",+القائمة!G20) ->  | M20: =IF(+القائمة!H20="","",+القائمة!H20) -> 
L21: =IF(+القائمة!G21="","",+القائمة!G21) ->  | M21: =IF(+القائمة!H21="","",+القائمة!H21) ->  | O21: =14950-6900 -> 8050 | P21: 6900 | Q21: =+O21+P21 -> 14950
L22: =IF(+القائمة!G22="","",+القائمة!G22) ->  | M22: =IF(+القائمة!H22="","",+القائمة!H22) -> 
L23: =IF(+القائمة!G23="","",+القائمة!G23) ->  | M23: =IF(+القائمة!H23="","",+القائمة!H23) -> 
L24: =IF(+القائمة!G24="","",+القائمة!G24) ->  | M24: =IF(+القائمة!H24="","",+القائمة!H24) -> 
L25: =IF(+القائمة!G25="","",+القائمة!G25) ->  | M25: =IF(+القائمة!H25="","",+القائمة!H25) -> 
L26: =IF(+القائمة!G26="","",+القائمة!G26) ->  | M26: =IF(+القائمة!H26="","",+القائمة!H26) -> 
L27: =IF(+القائمة!G27="","",+القائمة!G27) ->  | M27: =IF(+القائمة!H27="","",+القائمة!H27) -> 
L28: =IF(+القائمة!G28="","",+القائمة!G28) ->  | M28: =IF(+القائمة!H28="","",+القائمة!H28) -> 
L29: =IF(+القائمة!G29="","",+القائمة!G29) ->  | M29: =IF(+القائمة!H29="","",+القائمة!H29) -> 
L30: =IF(+القائمة!G30="","",+القائمة!G30) ->  | M30: =IF(+القائمة!H30="","",+القائمة!H30) -> 
L31: =IF(+القائمة!G31="","",+القائمة!G31) ->  | M31: =IF(+القائمة!H31="","",+القائمة!H31) -> 
L32: =IF(+القائمة!G32="","",+القائمة!G32) ->  | M32: =IF(+القائمة!H32="","",+القائمة!H32) -> 
L33: =IF(+القائمة!G33="","",+القائمة!G33) ->  | M33: =IF(+القائمة!H33="","",+القائمة!H33) -> 
L34: =IF(+القائمة!G34="","",+القائمة!G34) ->  | M34: =IF(+القائمة!H34="","",+القائمة!H34) -> 
L35: =IF(+القائمة!G35="","",+القائمة!G35) ->  | M35: =IF(+القائمة!H35="","",+القائمة!H35) -> 
L36: =IF(+القائمة!G36="","",+القائمة!G36) ->  | M36: =IF(+القائمة!H36="","",+القائمة!H36) -> 
L37: =IF(+القائمة!G37="","",+القائمة!G37) ->  | M37: =IF(+القائمة!H37="","",+القائمة!H37) -> 
L38: =IF(+القائمة!G38="","",+القائمة!G38) ->  | M38: =IF(+القائمة!H38="","",+القائمة!H38) -> 
L39: =IF(+القائمة!G39="","",+القائمة!G39) ->  | M39: =IF(+القائمة!H39="","",+القائمة!H39) -> 
L40: =IF(+القائمة!G40="","",+القائمة!G40) ->  | M40: =IF(+القائمة!H40="","",+القائمة!H40) -> 
L41: =IF(+القائمة!G41="","",+القائمة!G41) ->  | M41: =IF(+القائمة!H41="","",+القائمة!H41) -> 
L42: =IF(+القائمة!G42="","",+القائمة!G42) ->  | M42: =IF(+القائمة!H42="","",+القائمة!H42) -> 
L43: =IF(+القائمة!G43="","",+القائمة!G43) ->  | M43: =IF(+القائمة!H43="","",+القائمة!H43) -> 
L44: =IF(+القائمة!G44="","",+القائمة!G44) ->  | M44: =IF(+القائمة!H44="","",+القائمة!H44) -> 
L45: =IF(+القائمة!G45="","",+القائمة!G45) ->  | M45: =IF(+القائمة!H45="","",+القائمة!H45) -> 
L46: =IF(+القائمة!G46="","",+القائمة!G46) ->  | M46: =IF(+القائمة!H46="","",+القائمة!H46) -> 
L47: =IF(+القائمة!G47="","",+القائمة!G47) ->  | M47: =IF(+القائمة!H47="","",+القائمة!H47) -> 
L48: =IF(+القائمة!G48="","",+القائمة!G48) ->  | M48: =IF(+القائمة!H48="","",+القائمة!H48) -> 
L49: =IF(+القائمة!G49="","",+القائمة!G49) ->  | M49: =IF(+القائمة!H49="","",+القائمة!H49) -> 
L50: =IF(+القائمة!G50="","",+القائمة!G50) ->  | M50: =IF(+القائمة!H50="","",+القائمة!H50) -> 
L51: =IF(+القائمة!G51="","",+القائمة!G51) ->  | M51: =IF(+القائمة!H51="","",+القائمة!H51) -> 
L52: =IF(+القائمة!G52="","",+القائمة!G52) ->  | M52: =IF(+القائمة!H52="","",+القائمة!H52) -> 
L53: =IF(+القائمة!G53="","",+القائمة!G53) ->  | M53: =IF(+القائمة!H53="","",+القائمة!H53) -> 
L54: =IF(+القائمة!G54="","",+القائمة!G54) ->  | M54: =IF(+القائمة!H54="","",+القائمة!H54) -> 
L55: =IF(+القائمة!G55="","",+القائمة!G55) ->  | M55: =IF(+القائمة!H55="","",+القائمة!H55) -> 
L56: =IF(+القائمة!G56="","",+القائمة!G56) ->  | M56: =IF(+القائمة!H56="","",+القائمة!H56) -> 
L57: =IF(+القائمة!G57="","",+القائمة!G57) ->  | M57: =IF(+القائمة!H57="","",+القائمة!H57) -> 
L58: =IF(+القائمة!G58="","",+القائمة!G58) ->  | M58: =IF(+القائمة!H58="","",+القائمة!H58) -> 
L59: =IF(+القائمة!G59="","",+القائمة!G59) ->  | M59: =IF(+القائمة!H59="","",+القائمة!H59) -> 
L60: =IF(+القائمة!G60="","",+القائمة!G60) ->  | M60: =IF(+القائمة!H60="","",+القائمة!H60) -> 
L61: =IF(+القائمة!G61="","",+القائمة!G61) ->  | M61: =IF(+القائمة!H61="","",+القائمة!H61) -> 
L62: =IF(+القائمة!G62="","",+القائمة!G62) ->  | M62: =IF(+القائمة!H62="","",+القائمة!H62) -> 
L63: =IF(+القائمة!G63="","",+القائمة!G63) ->  | M63: =IF(+القائمة!H63="","",+القائمة!H63) -> 
L64: =IF(+القائمة!G64="","",+القائمة!G64) ->  | M64: =IF(+القائمة!H64="","",+القائمة!H64) -> 
L65: =IF(+القائمة!G65="","",+القائمة!G65) ->  | M65: =IF(+القائمة!H65="","",+القائمة!H65) -> 
L66: =IF(+القائمة!G66="","",+القائمة!G66) ->  | M66: =IF(+القائمة!H66="","",+القائمة!H66) -> 
L67: =IF(+القائمة!G67="","",+القائمة!G67) ->  | M67: =IF(+القائمة!H67="","",+القائمة!H67) -> 
L68: =IF(+القائمة!G68="","",+القائمة!G68) ->  | M68: =IF(+القائمة!H68="","",+القائمة!H68) -> 
L69: =IF(+القائمة!G69="","",+القائمة!G69) ->  | M69: =IF(+القائمة!H69="","",+القائمة!H69) -> 
L70: =IF(+القائمة!G70="","",+القائمة!G70) ->  | M70: =IF(+القائمة!H70="","",+القائمة!H70) -> 
L71: =IF(+القائمة!G71="","",+القائمة!G71) ->  | M71: =IF(+القائمة!H71="","",+القائمة!H71) -> 
L72: =IF(+القائمة!G72="","",+القائمة!G72) ->  | M72: =IF(+القائمة!H72="","",+القائمة!H72) -> 
L73: =IF(+القائمة!G73="","",+القائمة!G73) ->  | M73: =IF(+القائمة!H73="","",+القائمة!H73) -> 
L74: =IF(+القائمة!G74="","",+القائمة!G74) ->  | M74: =IF(+القائمة!H74="","",+القائمة!H74) -> 
I75: =IF(H75="","",INDEX(OFFSET(OFFSET(Percent,,5),,7*(MATCH($G75,Work,0)-1)),MATCH($H75,Percent,0),0)) ->  | J75: =IF(I75="","",INDEX(OFFSET(OFFSET(Percent,,6),,7*(MATCH($G75,Work,0)-1)),MATCH($H75,Percent,0),0)) ->  | L75: =IF(+القائمة!G75="","",+القائمة!G75) ->  | M75: =IF(+القائمة!H75="","",+القائمة!H75) -> 
L76: =IF(+القائمة!G76="","",+القائمة!G76) ->  | M76: =IF(+القائمة!H76="","",+القائمة!H76) -> 
L77: =IF(+القائمة!G77="","",+القائمة!G77) ->  | M77: =IF(+القائمة!H77="","",+القائمة!H77) -> 
L78: =IF(+القائمة!G78="","",+القائمة!G78) ->  | M78: =IF(+القائمة!H78="","",+القائمة!H78) -> 
L79: =IF(+القائمة!G79="","",+القائمة!G79) ->  | M79: =IF(+القائمة!H79="","",+القائمة!H79) -> 
L80: =IF(+القائمة!G80="","",+القائمة!G80) ->  | M80: =IF(+القائمة!H80="","",+القائمة!H80) -> 
L81: =IF(+القائمة!G81="","",+القائمة!G81) ->  | M81: =IF(+القائمة!H81="","",+القائمة!H81) -> 
L82: =IF(+القائمة!G82="","",+القائمة!G82) ->  | M82: =IF(+القائمة!H82="","",+القائمة!H82) -> 
L83: =IF(+القائمة!G83="","",+القائمة!G83) ->  | M83: =IF(+القائمة!H83="","",+القائمة!H83) -> 
L84: =IF(+القائمة!G84="","",+القائمة!G84) ->  | M84: =IF(+القائمة!H84="","",+القائمة!H84) -> 
L85: =IF(+القائمة!G85="","",+القائمة!G85) ->  | M85: =IF(+القائمة!H85="","",+القائمة!H85) -> 
L86: =IF(+القائمة!G86="","",+القائمة!G86) ->  | M86: =IF(+القائمة!H86="","",+القائمة!H86) -> 
L87: =IF(+القائمة!G87="","",+القائمة!G87) ->  | M87: =IF(+القائمة!H87="","",+القائمة!H87) -> 
L88: =IF(+القائمة!G88="","",+القائمة!G88) ->  | M88: =IF(+القائمة!H88="","",+القائمة!H88) -> 
L89: =IF(+القائمة!G89="","",+القائمة!G89) ->  | M89: =IF(+القائمة!H89="","",+القائمة!H89) -> 
L90: =IF(+القائمة!G90="","",+القائمة!G90) ->  | M90: =IF(+القائمة!H90="","",+القائمة!H90) -> 
L91: =IF(+القائمة!G91="","",+القائمة!G91) ->  | M91: =IF(+القائمة!H91="","",+القائمة!H91) -> 
L92: =IF(+القائمة!G92="","",+القائمة!G92) ->  | M92: =IF(+القائمة!H92="","",+القائمة!H92) -> 
L93: =IF(+القائمة!G93="","",+القائمة!G93) ->  | M93: =IF(+القائمة!H93="","",+القائمة!H93) -> 
L94: =IF(+القائمة!G94="","",+القائمة!G94) ->  | M94: =IF(+القائمة!H94="","",+القائمة!H94) -> 
L95: =IF(+القائمة!G95="","",+القائمة!G95) ->  | M95: =IF(+القائمة!H95="","",+القائمة!H95) -> 
L96: =IF(+القائمة!G96="","",+القائمة!G96) ->  | M96: =IF(+القائمة!H96="","",+القائمة!H96) -> 
L97: =IF(+القائمة!G97="","",+القائمة!G97) ->  | M97: =IF(+القائمة!H97="","",+القائمة!H97) -> 
L98: =IF(+القائمة!G98="","",+القائمة!G98) ->  | M98: =IF(+القائمة!H98="","",+القائمة!H98) -> 
L99: =IF(+القائمة!G99="","",+القائمة!G99) ->  | M99: =IF(+القائمة!H99="","",+القائمة!H99) -> 
L100: =IF(+القائمة!G100="","",+القائمة!G100) ->  | M100: =IF(+القائمة!H100="","",+القائمة!H100) -> 
L101: =IF(+القائمة!G101="","",+القائمة!G101) ->  | M101: =IF(+القائمة!H101="","",+القائمة!H101) -> 
L102: =IF(+القائمة!G102="","",+القائمة!G102) ->  | M102: =IF(+القائمة!H102="","",+القائمة!H102) -> 
I139: =IF(H139="","",INDEX(OFFSET(OFFSET(Percent,,5),,7*(MATCH($G139,Work,0)-1)),MATCH($H139,Percent,0),0)) ->  | J139: =IF(I139="","",INDEX(OFFSET(OFFSET(Percent,,6),,7*(MATCH($G139,Work,0)-1)),MATCH($H139,Percent,0),0)) -> 
I203: =IF(H203="","",INDEX(OFFSET(OFFSET(Percent,,5),,7*(MATCH($G203,Work,0)-1)),MATCH($H203,Percent,0),0)) ->  | J203: =IF(I203="","",INDEX(OFFSET(OFFSET(Percent,,6),,7*(MATCH($G203,Work,0)-1)),MATCH($H203,Percent,0),0)) -> 
I267: =IF(H267="","",INDEX(OFFSET(OFFSET(Percent,,5),,7*(MATCH($G267,Work,0)-1)),MATCH($H267,Percent,0),0)) ->  | J267: =IF(I267="","",INDEX(OFFSET(OFFSET(Percent,,6),,7*(MATCH($G267,Work,0)-1)),MATCH($H267,Percent,0),0)) -> 
I331: =IF(H331="","",INDEX(OFFSET(OFFSET(Percent,,5),,7*(MATCH($G331,Work,0)-1)),MATCH($H331,Percent,0),0)) ->  | J331: =IF(I331="","",INDEX(OFFSET(OFFSET(Percent,,6),,7*(MATCH($G331,Work,0)-1)),MATCH($H331,Percent,0),0)) -> 
I395: =IF(H395="","",INDEX(OFFSET(OFFSET(Percent,,5),,7*(MATCH($G395,Work,0)-1)),MATCH($H395,Percent,0),0)) ->  | J395: =IF(I395="","",INDEX(OFFSET(OFFSET(Percent,,6),,7*(MATCH($G395,Work,0)-1)),MATCH($H395,Percent,0),0)) -> 
I459: =IF(H459="","",INDEX(OFFSET(OFFSET(Percent,,5),,7*(MATCH($G459,Work,0)-1)),MATCH($H459,Percent,0),0)) ->  | J459: =IF(I459="","",INDEX(OFFSET(OFFSET(Percent,,6),,7*(MATCH($G459,Work,0)-1)),MATCH($H459,Percent,0),0)) -> 
I523: =IF(H523="","",INDEX(OFFSET(OFFSET(Percent,,5),,7*(MATCH($G523,Work,0)-1)),MATCH($H523,Percent,0),0)) ->  | J523: =IF(I523="","",INDEX(OFFSET(OFFSET(Percent,,6),,7*(MATCH($G523,Work,0)-1)),MATCH($H523,Percent,0),0)) -> 
